bitfinex/quotes_SOLUSD_20251018
["timestamp","ask_amount","ask_price","bid_price","bid_amount"]
[1760785745467,2.01721968,185.18,185.16,10.87647521]
[1760785745660,2.01721968,185.18,185.17,0.69]
[1760785746671,4.84127378,185.18,185.17,0.69]
[1760785746871,4.84127378,185.18,185.14,5.40126899]
[1760785747053,2.01721968,185.17,185.15,0.69]
[1760785749092,2.01721968,185.17,185.15,22.39]
[1760785749690,2.01721968,185.16,185.13,22.24016096]
[1760785749912,2.8240541,185.18,185.12,0.69]
[1760785749913,2.01721968,185.14,185.12,0.69]
[1760785750188,2.01721968,185.13,185.12,0.69]
[1760785751362,22.88,185.15,185.12,11.56647521]
[1760785751581,22.88,185.15,185.13,0.69]
[1760785752490,2.01721968,185.16,185.13,0.69]
[1760785752689,2.01721968,185.16,185.14,0.69]
[1760785753071,2.01721968,185.15,185.12,10.87647521]
[1760785753383,2.01721968,185.15,185.13,0.69]
[1760785755096,2.8240541,185.18,185.14,6.63132922]
[1760785755097,4.84127378,185.18,185.14,6.63132922]
[1760785755289,4.84127378,185.18,185.15,0.69]
[1760785755499,27.72127378,185.18,185.15,0.69]
[1760785755985,2.01721968,185.16,185.14,21.7]
[1760785756200,2.01721968,185.15,185.14,32.57647521]
[1760785757001,2.01721968,185.16,185.14,32.57647521]
[1760785757202,2.01721968,185.16,185.15,0.69]
[1760785757908,2.01721968,185.17,185.15,0.69]
[1760785759397,2.01721968,185.16,185.15,21.7]
[1760785763607,2.01721968,185.17,185.15,22.39]
[1760785763813,2.01721968,185.17,185.16,0.69]
[1760785764106,2.01721968,185.17,185.15,21.7]
[1760785764311,2.01721968,185.16,185.15,21.7]
[1760785764500,2.01721968,185.16,185.15,22.39]
[1760785764701,2.8240541,185.18,185.15,22.39]
[1760785764919,2.01721968,185.17,185.15,22.39]
[1760785765704,2.01721968,185.17,185.16,0.69]
[1760785765901,4.84127378,185.18,185.16,0.69]
[1760785766814,4.84127378,185.18,185.15,27.10089822]
[1760785767109,4.84127378,185.18,185.17,0.69]
[1760785767311,27.72127378,185.18,185.15,22.39]
[1760785767501,2.01721968,185.17,185.15,22.39]
[1760785767696,2.01721968,185.17,185.15,21.7]
[1760785767903,2.01721968,185.17,185.15,22.39]
[1760785768699,2.01721968,185.17,185.16,0.69]
[1760785769314,2.69721968,185.24,185.17,16.27686839]
[1760785769519,2.82360121,185.21,185.19,10.87647521]
[1760785769692,2.01721968,185.23,185.19,10.87647521]
[1760785769898,2.82361177,185.21,185.19,10.87647521]
[1760785770615,4.84083145,185.21,185.18,0.54001512]
[1760785770815,2.01721968,185.2,185.17,16.27686839]
[1760785771013,2.69721968,185.19,185.15,5.40102619]
[1760785771214,2.69721968,185.19,185.15,6.09102619]
[1760785771518,2.01721968,185.16,185.13,16.27806189]
[1760785771711,2.01721968,185.17,185.13,16.96806189]
[1760785772908,25.57721968,185.18,185.13,29.78208608]
[1760785773114,2.01721968,185.19,185.14,0.69]
[1760785773621,2.01721968,185.19,185.13,30.32224704]
[1760785773821,2.01721968,185.19,185.14,0.69]
[1760785774022,2.01721968,185.19,185.13,30.32224704]
[1760785774321,2.01721968,185.2,185.15,10.87647521]
[1760785774518,2.01721968,185.2,185.16,1.23007344]
[1760785774900,2.01721968,185.2,185.17,5.40044283]
[1760785775612,5.52083145,185.21,185.17,5.40044283]
[1760785778325,4.84083145,185.21,185.18,0.69]
[1760785778508,2.82361177,185.21,185.18,0.69]
[1760785779313,2.82361177,185.21,185.18,6.09012296]
[1760785780027,2.82361177,185.21,185.19,1.22998596]
[1760785780229,0.68,185.26,185.2,0.69]
[1760785780419,2.82348292,185.24,185.2,22.39]
[1760785780729,2.82348292,185.24,185.21,0.69]
[1760785780929,2.82348292,185.24,185.22,0.69]
[1760785781118,2.69721968,185.29,185.23,12.10634456]
[1760785781429,2.82304927,185.27,185.24,5.39840207]
[1760785782210,25.70304927,185.27,185.23,33.11634456]
[1760785782414,24.89721968,185.24,185.23,21.7]
[1760785782614,2.69721968,185.24,185.23,21.7]
[1760785784130,2.69721968,185.24,185.18,5.40008956]
[1760785784339,0.68,185.23,185.18,27.10008956]
[1760785784629,2.01721968,185.24,185.18,27.10008956]
[1760785784630,2.01721968,185.21,185.18,27.10008956]
[1760785784825,2.01721968,185.21,185.18,27.77008956]
[1760785786134,0.68,185.22,185.18,27.77008956]
[1760785786135,2.69721968,185.22,185.18,27.77008956]
[1760785786333,0.68,185.22,185.18,27.77008956]
[1760785786533,0.68,185.22,185.18,28.31010468]
[1760785787340,2.01721968,185.23,185.19,6.06980701]
[1760785787512,2.69721968,185.23,185.19,6.06980701]
[1760785788020,0.68,185.22,185.19,5.39980701]
[1760785788521,2.01721968,185.23,185.19,6.06980701]
[1760785788716,2.69721968,185.23,185.19,6.06980701]
[1760785788931,2.69721968,185.23,185.19,27.76980701]
[1760785789231,2.69721968,185.23,185.19,22.37]
[1760785789927,2.01721968,185.22,185.19,22.37]
[1760785791431,2.01721968,185.23,185.19,27.09978761]
[1760785791737,24.89721968,185.24,185.2,0.67]
[1760785792028,2.01721968,185.24,185.2,0.67]
[1760785792228,2.69721968,185.24,185.2,0.67]
[1760785793115,0.68,185.24,185.2,0.67]
[1760785793518,0.68,185.24,185.2,6.06949014]
[1760785794830,3.50304927,185.27,185.21,11.54647521]
[1760785795033,2.82304927,185.27,185.22,0.67]
[1760785795230,2.82304927,185.27,185.23,0.67]
[1760785795425,3.50304927,185.27,185.23,0.67]
[1760785796140,3.50304927,185.27,185.24,0.5398402]
[1760785797033,3.50304927,185.27,185.24,5.93811125]
[1760785797232,2.82304927,185.27,185.25,0.67]
[1760785797537,2.82304927,185.27,185.26,0.67]
[1760785798233,25.70304927,185.27,185.26,0.67]
[1760785798734,2.82304927,185.27,185.26,0.67]
[1760785799737,0.68,185.32,185.27,10.87647521]
[1760785799929,2.82243714,185.31,185.28,1.20972366]
[1760785800132,22.88,185.3,185.28,1.20972366]
[1760785801016,2.69721968,185.29,185.21,1.20992764]
[1760785801223,2.01721968,185.26,185.22,10.87647521]
[1760785801424,3.83358244,185.26,185.22,5.39898499]
[1760785801733,3.83358244,185.26,185.22,6.06898499]
[1760785802731,0.68,185.26,185.22,6.06898499]
[1760785803119,0.68,185.26,185.23,6.06860113]
[1760785803938,3.15358244,185.27,185.23,6.06860113]
[1760785804138,3.83358244,185.27,185.23,6.06860113]
[1760785804438,22.88,185.28,185.24,1.2098402]
[1760785804828,22.88,185.28,185.25,0.67]
[1760785805027,5.97601958,185.31,185.26,0.67]
[1760785805237,6.65601958,185.31,185.26,1.20978192]
[1760785805539,0.71,185.3,185.26,1.20978192]
[1760785806128,0.71,185.3,185.26,6.60736487]
[1760785807547,2.82243714,185.31,185.27,11.58647521]
[1760785807738,2.82243714,185.31,185.28,1.24972366]
[1760785807938,22.88,185.3,185.28,1.24972366]
[1760785809740,2.82243714,185.31,185.28,0.53972366]
[1760785810149,3.53243714,185.31,185.28,0.53972366]
[1760785810633,3.53243714,185.31,185.28,5.93692286]
[1760785810839,22.88,185.29,185.28,5.93692286]
[1760785811342,22.88,185.29,185.27,16.81371917]
[1760785811546,22.88,185.29,185.27,17.52371917]
[1760785812146,3.53243714,185.31,185.27,17.52371917]
[1760785812448,2.82243714,185.31,185.28,0.71]
[1760785812640,2.82243714,185.31,185.29,0.71]
[1760785812835,2.82243714,185.31,185.29,22.41]
[1760785813138,2.82243714,185.31,185.29,21.7]
[1760785814442,2.82243714,185.31,185.29,27.09690845]
[1760785814943,0.2,185.34,185.3,1.2596654]
[1760785815148,0.2,185.34,185.31,0.72]
[1760785815444,0.2,185.34,185.32,0.53960716]
[1760785816828,0.2,185.34,185.32,6.65542818]
[1760785817234,0.2,185.34,185.32,5.93542818]
[1760785819131,3.86358244,185.33,185.31,21.7]
[1760785819332,0.71,185.32,185.31,21.7]
[1760785819646,3.15358244,185.33,185.31,21.7]
[1760785819950,0.2,185.34,185.31,27.09628295]
[1760785820128,0.91,185.34,185.31,27.09628295]
[1760785820846,0.2,185.34,185.31,27.81628295]
[1760785824333,0.2,185.34,185.32,0.72]
[1760785824538,0.2,185.34,185.31,27.09628295]
[1760785824740,0.2,185.34,185.31,27.81628295]
[1760785825536,0.2,185.34,185.32,6.11593726]
[1760785826355,0.2,185.34,185.31,27.63593802]
[1760785826555,0.2,185.34,185.32,0.72]
[1760785827449,0.2,185.34,185.32,27.81596612]
[1760785827637,0.2,185.34,185.32,28.35557328]
[1760785828556,0.2,185.34,185.32,27.81596612]
[1760785829661,0.2,185.34,185.33,0.72]
[1760785829662,23.08,185.34,185.33,0.72]
[1760785829961,23.08,185.34,185.33,22.42]
[1760785830459,0.2,185.34,185.33,22.42]
[1760785831763,0.2,185.34,185.33,27.81578049]
[1760785833759,0.2,185.34,185.33,27.09578049]
[1760785833961,0.91,185.34,185.33,21.7]
[1760785834653,0.2,185.34,185.33,21.7]
[1760785836976,0.2,185.34,185.33,27.09578049]
[1760785837790,0.2,185.34,185.33,27.81578049]
[1760785838772,0.2,185.34,185.33,27.09578049]
[1760785839461,0.91,185.34,185.33,21.7]
[1760785840480,0.2,185.34,185.33,27.09578049]
[1760785842289,0.2,185.34,185.33,27.81578049]
[1760785842464,0.2,185.34,185.33,38.6922557]
[1760785846108,0.2,185.34,185.33,38.97657884]
[1760785848085,0.2,185.34,185.32,5.39607165]
[1760785848400,0.2,185.34,185.33,1.22957804]
[1760785848706,0.2,185.34,185.33,12.10605325]
[1760785849816,0.2,185.34,185.33,17.50183374]
[1760785851278,0.2,185.34,185.33,39.20183374]
[1760785853503,0.2,185.35,185.34,10.87647521]
[1760785853684,0.2,185.35,185.34,11.85079835]
[1760785854183,0.2,185.35,185.34,0.28432314]
[1760785854705,0.2,185.35,185.34,0.97432314]
[1760785855603,0.2,185.35,185.34,6.36981251]
[1760785857316,0.2,185.35,185.34,16.27196458]
[1760785858591,0.2,185.35,185.34,16.96196458]
[1760785860120,0.2,185.35,185.34,38.66196458]
[1760785860695,0.2,185.35,185.34,40.13582273]
[1760785864428,0.92,185.35,185.34,34.74033336]
[1760785864721,2.93551273,185.35,185.32,5.39585944]
[1760785864895,0.67,185.34,185.32,5.39585944]
[1760785865513,0.67,185.33,185.32,5.39585944]
[1760785865707,0.67,185.33,185.31,33.11611149]
[1760785866024,0.67,185.32,185.31,22.23963628]
[1760785866608,0.2,185.35,185.31,22.23963628]
[1760785866813,2.01551273,185.33,185.31,21.7]
[1760785867023,0.67,185.32,185.31,22.23963628]
[1760785867633,0.67,185.32,185.31,27.63599913]
[1760785868011,2.68551273,185.34,185.31,27.63599913]
[1760785868214,0.87,185.35,185.31,28.31599913]
[1760785868807,0.2,185.35,185.32,11.84079835]
[1760785869132,0.2,185.35,185.34,10.87647521]
[1760785870016,0.2,185.35,185.34,11.55647521]
[1760785870209,0.2,185.35,185.34,10.87647521]
[1760785871022,0.2,185.35,185.34,16.27196458]
[1760785872031,0.2,185.35,185.34,17.23628772]
[1760785872230,0.2,185.35,185.34,38.93628772]
[1760785873528,1e-08,185.35,185.34,38.93628772]
[1760785876428,0.2,185.37,185.36,32.2764752]
[1760785876732,0.2,185.37,185.36,32.81596592]
[1760785876926,0.2,185.37,185.36,33.48596592]
[1760785877126,0.2,185.37,185.36,35.64923895]
[1760785877725,0.2,185.37,185.36,35.93356209]
[1760785878338,0.2,185.37,185.36,41.32846929]
[1760785880431,0.2,185.37,185.36,40.65846929]
[1760785880631,0.2,185.37,185.36,40.55846929]
[1760785881242,0.2,185.37,185.36,41.22846929]
[1760785883052,0.2,185.37,185.36,40.55846929]
[1760785885741,0.2,185.37,185.36,41.22846929]
[1760785889546,0.2,185.38,185.37,37.65541451]
[1760785889734,0.2,185.38,185.37,38.12541451]
[1760785890136,0.2,185.38,185.37,38.66487612]
[1760785890357,0.2,185.38,185.37,40.82803216]
[1760785891933,0.2,185.39,185.37,40.82803216]
[1760785891934,0.2,185.39,185.38,11.16079835]
[1760785892150,0.2,185.39,185.38,11.83079835]
[1760785893054,0.2,185.39,185.38,19.38804561]
[1760785894756,0.2,185.39,185.38,18.71804561]
[1760785894941,0.9,185.39,185.38,18.71804561]
[1760785895659,0.2,185.41,185.4,0.28432314]
[1760785895844,0.2,185.41,185.4,0.82369746]
[1760785896260,0.2,185.41,185.4,3.03921019]
[1760785896661,0.2,185.41,185.4,8.43295344]
[1760785901463,0.2,185.41,185.4,27.73295343]
[1760785902073,0.2,185.41,185.4,27.44863029]
[1760785902364,0.9,185.41,185.4,38.3251055]
[1760785905653,0.2,185.41,185.4,38.3251055]
[1760785909671,0.89,185.41,185.4,19.83937431]
[1760785909878,0.89,185.41,185.4,19.29999999]
[1760785910174,0.89,185.41,185.4,24.69374324]
[1760785910643,0.2,185.41,185.4,35.57021845]
[1760785911044,0.2,185.41,185.4,38.2728658]
[1760785911257,0.2,185.41,185.4,38.9528658]
[1760785911663,0.2,185.43,185.4,39.23718894]
[1760785911841,0.2,185.44,185.42,0.28432314]
[1760785912048,1e-08,185.44,185.43,12.09576227]
[1760785912260,1e-08,185.44,185.43,12.38008541]
[1760785912468,1e-08,185.44,185.43,14.54242289]
[1760785913747,1e-08,185.44,185.43,19.93529351]
[1760785915367,0.2,185.51,185.44,11.16079835]
[1760785915570,0.2,185.51,185.47,0.28432314]
[1760785915755,1e-08,185.48,185.47,12.3799691]
[1760785917261,1e-08,185.48,185.47,17.77167665]
[1760785918257,1e-08,185.48,185.47,45.21167665]
[1760785919079,1e-08,185.48,185.47,64.51167664]
[1760785920666,1e-08,185.48,185.47,36.39167664]
[1760785920873,1e-08,185.48,185.47,36.1073535]
[1760785921158,1e-08,185.48,185.47,36.39167664]
[1760785921978,1e-08,185.48,185.47,38.5536635]
[1760785924484,1e-08,185.48,185.47,36.39167664]
[1760785927176,0.68000001,185.48,185.47,19.29999999]
[1760785929096,3.82370025,185.48,185.42,19.29999999]
[1760785929292,3.14370024,185.45,185.42,24.69290236]
[1760785929476,0.68,185.44,185.4,5.93288148]
[1760785929785,0.68,185.43,185.4,5.93288148]
[1760785929990,0.68,185.42,185.4,5.93288148]
[1760785930673,3.14370024,185.45,185.4,5.93288148]
[1760785930867,0.68,185.44,185.4,5.93288148]
[1760785931177,0.68,185.43,185.4,5.93288148]
[1760785931363,0.68,185.42,185.4,5.93288148]
[1760785931787,0.68,185.41,185.4,16.80935669]
[1760785932390,1e-08,185.48,185.4,16.80935669]
[1760785932391,0.68,185.47,185.41,10.87647521]
[1760785932582,0.68,185.45,185.41,10.87647521]
[1760785932774,0.68,185.45,185.41,11.53647521]
[1760785933590,0.68,185.45,185.43,5.39287062]
[1760785934094,0.68,185.44,185.42,5.93242437]
[1760785934304,3.14370024,185.46,185.42,5.93242437]
[1760785934604,0.68,185.45,185.42,5.93242437]
[1760785934890,3.82370024,185.46,185.42,5.93242437]
[1760785935272,0.68,185.46,185.42,5.93242437]
[1760785935696,0.68,185.45,185.42,5.93242437]
[1760785936988,0.68,185.45,185.42,25.23242436]
[1760785937397,3.14370024,185.43,185.42,19.29999999]
[1760785937601,3.82370024,185.43,185.42,19.29999999]
[1760785937785,0.68,185.43,185.42,19.29999999]
[1760785938369,3.14370024,185.44,185.42,19.29999999]
[1760785938575,3.82370024,185.44,185.42,19.29999999]
[1760785938876,1e-08,185.48,185.42,24.69313837]
[1760785939081,3.14370024,185.46,185.42,25.40313837]
[1760785939881,0.68,185.47,185.42,25.40313837]
[1760785940193,0.68,185.47,185.43,0.71]
[1760785940400,3.14370025,185.48,185.43,10.87647521]
[1760785940401,3.82370024,185.46,185.43,10.87647521]
[1760785940880,0.68,185.46,185.43,10.87647521]
[1760785941187,0.68,185.46,185.43,11.41576227]
[1760785942403,0.68,185.46,185.43,16.80863269]
[1760785942894,3.14370024,185.47,185.43,16.80863269]
[1760785943101,3.82370024,185.47,185.43,17.51863269]
[1760785943299,3.14370024,185.47,185.43,10.87647521]
[1760785943483,3.82370024,185.46,185.43,10.87647521]
[1760785943681,3.82370024,185.45,185.42,19.29999999]
[1760785944282,3.82370024,185.45,185.42,20.00999999]
[1760785944586,3.14370024,185.45,185.42,20.00999999]
[1760785945111,3.82370024,185.46,185.42,20.00999999]
[1760785945293,1e-08,185.48,185.43,1.24928706]
[1760785945490,3.82370024,185.47,185.42,24.69289195]
[1760785945802,3.14370024,185.46,185.43,0.71]
[1760785946207,3.82370024,185.46,185.42,24.69289195]
[1760785946582,0.68,185.45,185.42,19.29999999]
[1760785947100,3.14370024,185.45,185.42,19.29999999]
[1760785947403,3.14370024,185.45,185.42,20.00999999]
[1760785947600,0.68,185.47,185.42,20.00999999]
[1760785947806,3.14370024,185.46,185.43,0.71]
[1760785948998,22.88,185.45,185.43,0.71]
[1760785949709,3.82370024,185.47,185.43,0.71]
[1760785950813,22.88,185.45,185.43,6.10280774]
[1760785951612,22.88,185.45,185.43,25.40280773]
[1760785952714,22.88,185.45,185.43,20.00999999]
[1760785952906,22.88,185.45,185.43,19.29999999]
[1760785954123,22.88,185.45,185.44,0.71]
[1760785954618,22.88,185.45,185.43,24.69285925]
[1760785954915,22.88,185.45,185.43,25.40285925]
[1760785956514,22.88,185.45,185.44,0.71]
[1760785957518,22.88,185.45,185.44,20.00999999]
[1760785961107,22.88,185.45,185.44,19.29999999]
[1760785963923,0.68,185.47,185.44,19.29999999]
[1760785964727,0.68,185.47,185.44,19.99999999]
[1760785964928,0.68,185.47,185.44,19.29999999]
[1760785965303,0.68,185.47,185.44,19.99999999]
[1760785965523,3.14370024,185.47,185.44,19.99999999]
[1760785967528,6.6437015,185.48,185.44,19.99999999]
[1760785968425,6.6437015,185.48,185.44,25.39253025]
[1760785968630,6.6437015,185.48,185.44,24.69253025]
[1760785968814,6.6437015,185.48,185.44,25.39253025]
[1760785969627,6.6437015,185.48,185.44,24.69253025]
[1760785969826,3.82370025,185.48,185.45,0.7]
[1760785970130,22.88,185.47,185.45,0.7]
[1760785972229,22.88,185.47,185.45,25.23151051]
[1760785972528,22.88,185.47,185.46,0.7]
[1760785972734,22.88,185.47,185.46,19.99999999]
[1760785972912,22.88000001,185.48,185.46,19.99999999]
[1760785973417,22.88000001,185.48,185.46,25.39196929]
[1760785973920,1e-08,185.48,185.47,0.7]
[1760785974235,22.88000001,185.48,185.47,1.23917075]
[1760785974438,22.88000001,185.48,185.47,0.7]
[1760785974934,22.88000001,185.48,185.46,25.39196929]
[1760785976738,1e-08,185.48,185.46,25.39196929]
[1760785980446,1e-08,185.48,185.46,19.99999999]
[1760785981139,1e-08,185.48,185.46,24.69191699]
[1760785981342,22.88000001,185.48,185.47,0.7]
[1760785981844,1e-08,185.48,185.47,16.91928472]
[1760785982235,1e-08,185.48,185.47,47.09575992]
[1760785982624,1e-08,185.48,185.47,52.77179061]
[1760785984844,1e-08,185.48,185.47,75.65179061]
[1760785988735,0.2,185.51,185.48,11.16079835]
[1760785988949,0.2,185.53,185.52,11.16079835]
[1760785989148,0.2,185.53,185.52,30.69982378]
[1760785989356,0.2,185.53,185.52,31.36982378]
[1760785989655,0.2,185.53,185.52,47.58122039]
[1760785990245,0.2,185.53,185.52,52.97147481]
[1760785990654,0.2,185.53,185.52,52.30147481]
[1760785991457,0.9,185.53,185.52,40.60165102]
[1760785991633,0.2,185.53,185.52,40.60165102]
[1760785992531,0.2,185.53,185.52,52.14812623]
[1760785993049,0.2,185.53,185.52,52.43244937]
[1760785998254,0.68,185.58,185.55,11.16079835]
[1760785998454,2.11209471,185.6,185.55,30.29973663]
[1760785998635,0.68,185.57,185.55,30.01541349]
[1760785998957,0.68,185.57,185.56,16.21052062]
[1760785999256,2.01209471,185.58,185.56,16.21052062]
[1760785999757,0.68,185.57,185.56,16.21052062]
[1760786000451,0.68,185.57,185.56,21.59961309]
[1760786001850,0.68,185.57,185.56,40.19961308]
[1760786006150,2.01209471,185.59,185.56,40.19961308]
[1760786006351,0.68,185.58,185.56,40.19961308]
[1760786006553,0.68,185.58,185.56,23.98909246]
[1760786006946,0.68,185.58,185.57,2.16140275]
[1760786007145,0.68,185.58,185.57,7.55020481]
[1760786007564,2.11209471,185.6,185.57,7.55020481]
[1760786007763,0.68,185.59,185.57,26.1502048]
[1760786007968,0.68,185.58,185.57,26.1502048]
[1760786008265,0.68,185.58,185.57,23.98880205]
[1760786008646,0.68,185.58,185.57,26.1502048]
[1760786009266,2.11209471,185.6,185.57,26.1502048]
[1760786009464,0.68,185.59,185.57,26.1502048]
[1760786009766,0.68,185.59,185.57,23.98880205]
[1760786010176,0.68,185.59,185.58,3.01793595]
[1760786010347,0.1,185.6,185.58,8.40633391]
[1760786011071,0.78,185.6,185.58,8.40633391]
[1760786011871,0.1,185.6,185.58,8.40633391]
[1760786013470,0.1,185.6,185.58,3.01793595]
[1760786013675,0.78,185.6,185.58,3.01793595]
[1760786013978,0.1,185.6,185.58,3.01793595]
[1760786014472,0.1,185.6,185.58,9.11636204]
[1760786014679,0.1,185.6,185.58,8.40636204]
[1760786015072,0.1,185.6,185.58,5.38842609]
[1760786015462,0.1,185.6,185.59,2.89209471]
[1760786016458,0.1,185.6,185.59,26.88031604]
[1760786016665,0.1,185.6,185.59,27.59031604]
[1760786018569,0.1,185.6,185.59,38.46679125]
[1760786020471,0.1,185.6,185.59,37.75679125]
[1760786020676,2.79209471,185.6,185.59,21.4920947]
[1760786021483,0.78,185.6,185.59,21.4920947]
[1760786021673,0.1,185.6,185.59,26.88031604]
[1760786023064,2.79209471,185.6,185.59,18.59999999]
[1760786023471,0.1,185.6,185.59,18.59999999]
[1760786025581,0.1,185.6,185.58,23.98849492]
[1760786026187,0.1,185.6,185.58,40.19813965]
[1760786026385,0.1,185.6,185.58,23.98849492]
[1760786026687,0.1,185.6,185.58,26.20058963]
[1760786027386,0.1,185.6,185.58,26.91058963]
[1760786027585,2.68209471,185.59,185.58,18.59999999]
[1760786029592,2.68209471,185.59,185.56,2.68209471]
[1760786029893,2.01209471,185.58,185.56,0.71]
[1760786030197,2.01209471,185.59,185.56,0.71]
[1760786030396,2.11209471,185.6,185.56,1.24890924]
[1760786030582,2.78209471,185.6,185.56,1.24890924]
[1760786030784,2.78209471,185.6,185.56,3.41031199]
[1760786031091,2.78209471,185.6,185.57,6.09880206]
[1760786031294,2.78209471,185.6,185.56,8.0893539]
[1760786031476,2.78209471,185.6,185.56,8.7993539]
[1760786031797,2.01209471,185.59,185.56,8.7993539]
[1760786031990,2.68209471,185.59,185.56,2.87140275]
[1760786032505,0.1,185.6,185.56,8.26049197]
[1760786032680,2.01209471,185.59,185.56,8.26049197]
[1760786034397,2.01209471,185.59,185.56,26.86049196]
[1760786035998,2.01209471,185.59,185.56,26.15049196]
[1760786036192,2.01209471,185.59,185.57,0.71]
[1760786040308,2.01209471,185.59,185.57,19.30999999]
[1760786041001,2.11209471,185.6,185.58,0.71]
[1760786041200,2.11209471,185.6,185.57,24.69876149]
[1760786041786,2.78209471,185.6,185.57,24.69876149]
[1760786042597,2.11209471,185.6,185.58,0.71]
[1760786043288,2.11209471,185.6,185.57,24.69876149]
[1760786043588,3.24188431,185.6,185.57,24.69876149]
[1760786044087,3.14188431,185.58,185.57,18.59999999]
[1760786044295,3.81188431,185.58,185.57,18.59999999]
[1760786046286,3.81188431,185.58,185.55,0.67]
[1760786046486,3.14188431,185.57,185.55,19.26999999]
[1760786048190,3.14188431,185.57,185.56,0.67]
[1760786048393,3.14188431,185.58,185.56,0.67]
[1760786048890,3.14188431,185.59,185.56,0.67]
[1760786049308,3.14188431,185.59,185.57,0.67]
[1760786050290,3.14188431,185.59,185.56,0.67]
[1760786050789,3.14188431,185.59,185.57,0.67]
[1760786051407,0.1,185.6,185.57,0.67]
[1760786051714,3.14188431,185.59,185.57,0.67]
[1760786052096,3.14188431,185.59,185.57,19.26999999]
[1760786052902,0.1,185.6,185.57,19.26999999]
[1760786053105,3.24188431,185.6,185.58,0.67]
[1760786053415,3.24188431,185.6,185.59,0.69]
[1760786053596,22.88,185.59,185.57,18.59999999]
[1760786053800,22.88,185.59,185.58,0.69]
[1760786054508,0.1,185.6,185.58,0.69]
[1760786055416,3.24188431,185.6,185.56,6.61795092]
[1760786055625,0.65,185.59,185.56,6.07904168]
[1760786056322,3.79188431,185.59,185.56,6.07904168]
[1760786057425,3.14188431,185.59,185.56,6.07904168]
[1760786057602,3.14188431,185.59,185.56,5.38904168]
[1760786057919,3.24188431,185.6,185.57,0.69]
[1760786058221,3.89188431,185.6,185.57,0.69]
[1760786059716,0.75,185.6,185.57,0.69]
[1760786059920,3.89188431,185.6,185.57,0.69]
[1760786060224,3.89188431,185.6,185.56,0.69]
[1760786060413,3.14188431,185.58,185.54,24.67967156]
[1760786060604,3.79188431,185.57,185.54,24.67967156]
[1760786062614,3.14188431,185.58,185.54,24.67967156]
[1760786062937,3.14188431,185.58,185.55,0.69]
[1760786063110,3.14188431,185.58,185.56,0.69]
[1760786063723,3.14188431,185.59,185.56,6.07902275]
[1760786063931,3.14188431,185.58,185.56,19.28999999]
[1760786065730,0.75,185.6,185.56,19.28999999]
[1760786065907,3.14188431,185.58,185.56,19.28999999]
[1760786066526,3.14188431,185.59,185.57,0.69]
[1760786066726,3.24188431,185.6,185.56,23.98906407]
[1760786066914,3.24188431,185.6,185.57,0.69]
[1760786068227,3.14188431,185.59,185.57,0.69]
[1760786069436,0.75,185.6,185.57,0.69]
[1760786069740,3.89188431,185.6,185.57,0.69]
[1760786070035,3.14188431,185.59,185.56,23.9890428]
[1760786070220,3.79188431,185.59,185.56,18.59999999]
[1760786070421,3.79188431,185.59,185.56,19.28999999]
[1760786070918,3.14188431,185.58,185.56,19.28999999]
[1760786071746,3.79188431,185.59,185.56,19.28999999]
[1760786071922,3.14188431,185.59,185.56,19.28999999]
[1760786072245,3.79188431,185.59,185.56,19.28999999]
[1760786073942,3.14188431,185.59,185.56,19.28999999]
[1760786076442,3.14188431,185.59,185.56,24.6790069]
[1760786076741,3.89188431,185.6,185.56,23.9890069]
[1760786076939,3.89188431,185.6,185.57,0.69]
[1760786077554,3.24188431,185.6,185.57,0.69]
[1760786077855,3.89188431,185.6,185.57,0.69]
[1760786078432,3.24188431,185.6,185.57,0.69]
[1760786078938,3.89188431,185.6,185.57,0.69]
[1760786081535,0.75,185.6,185.57,0.69]
[1760786082148,0.1,185.6,185.57,0.69]
[1760786082358,0.75,185.6,185.57,0.69]
[1760786082950,0.1,185.6,185.57,6.07879495]